fUST/lending_fUST_20240324
["ID","MTS","AMOUNT","RATE_DAILY","PERIOD"]
[320311063,1711283447031,-1932.88182962,0.00027397,2]
[320311065,1711283447040,-1932.88182962,0.00027397,2]
[320311067,1711283447052,-1932.88182962,0.00027397,2]
[320311069,1711283447061,-1932.88182962,0.00027397,2]
[320311071,1711283447070,-1932.88182962,0.00027397,2]
[320311073,1711283447079,-1932.88182962,0.00027397,2]
[320311075,1711283447088,-1932.88182962,0.00027397,2]
[320311077,1711283447099,-1932.88182962,0.00027397,2]
[320311079,1711283447108,-1932.88182962,0.00027397,2]
[320311081,1711283447117,-1932.88182962,0.00027397,2]
[320311083,1711283447126,-1932.88182962,0.00027397,2]
[320311085,1711283447138,-1932.88182962,0.00027397,2]
[320311087,1711283447148,-1932.88182962,0.00027397,2]
[320311089,1711283447158,-1932.88182962,0.00027397,2]
[320311091,1711283447167,-1932.88182962,0.00027397,2]
[320311093,1711283447176,-1932.88182962,0.00027397,2]
[320311095,1711283447185,-1932.88182962,0.00027397,2]
[320311097,1711283447195,-1932.88182962,0.00027397,2]
[320311099,1711283447204,-1932.88182962,0.00027397,2]
[320311101,1711283447213,-1932.88182962,0.00027397,2]
[320311103,1711283447225,-1932.88182962,0.00027397,2]
[320311105,1711283447236,-1932.88182962,0.00027397,2]
[320311107,1711283447245,-1932.88182962,0.00027397,2]
[320311109,1711283447255,-1932.88182962,0.00027397,2]
[320311111,1711283447264,-1932.88182962,0.00027397,2]
[320311113,1711283447273,-1932.88182962,0.00027397,2]
[320311115,1711283447282,-1932.88182962,0.00027397,2]
[320311117,1711283447291,-1932.88182962,0.00027397,2]
[320311119,1711283447300,-1932.88182962,0.00027397,2]
[320311121,1711283447310,-1932.88182962,0.00027397,2]
[320311123,1711283447319,-1932.88182962,0.00027397,2]
[320311125,1711283447328,-1932.88182962,0.00027397,2]
[320311127,1711283447338,-1932.88182962,0.00027397,2]
[320311129,1711283447347,-1932.88182962,0.00027397,2]
[320311131,1711283447355,-1932.88182962,0.00027397,2]
[320311133,1711283447364,-1932.88182962,0.00027397,2]
[320311135,1711283447373,-1932.88182962,0.00027397,2]
[320311137,1711283447382,-1932.88182962,0.00027397,2]
[320311139,1711283447391,-1932.88182962,0.00027397,2]
[320311140,1711283447400,-1932.88182962,0.00027397,2]
[320311142,1711283447409,-1932.88182962,0.00027397,2]
[320311144,1711283447418,-1893.08720372,0.00027397,2]
[320311146,1711283447427,-1893.08720372,0.00027397,2]
[320311148,1711283447436,-1893.08720372,0.00027397,2]
[320311150,1711283447447,-1893.08720372,0.00027397,2]
[320311151,1711283447457,-1893.08720372,0.00027397,2]
[320311153,1711283447466,-1893.08720372,0.00027397,2]
[320311155,1711283447475,-1893.08720372,0.00027397,2]
[320311157,1711283447484,-1893.08720372,0.00027397,2]
[320311159,1711283447493,-1893.08720372,0.00027397,2]
[320311161,1711283447502,-1893.08720372,0.00027397,2]
[320311163,1711283447511,-1893.08720372,0.00027397,2]
[320311165,1711283447520,-1893.08720372,0.00027397,2]
[320311167,1711283447529,-1893.08720372,0.00027397,2]
[320311169,1711283447538,-1893.08720372,0.00027397,2]
[320311171,1711283447547,-1893.08720372,0.00027397,2]
[320311173,1711283447556,-1893.08720372,0.00027397,2]
[320311175,1711283447565,-1893.08720372,0.00027397,2]
[320311177,1711283447574,-1893.08720372,0.00027397,2]
[320311179,1711283447583,-1893.08720372,0.00027397,2]
[320311181,1711283447592,-1893.08720372,0.00027397,2]
[320311183,1711283447601,-1893.08720372,0.00027397,2]
[320311185,1711283447610,-1893.08720372,0.00027397,2]
[320311187,1711283447618,-1893.08720372,0.00027397,2]
[320311189,1711283447627,-1893.08720372,0.00027397,2]
[320311191,1711283447637,-1893.08720372,0.00027397,2]
[320311193,1711283447646,-1893.08720372,0.00027397,2]
[320311195,1711283447655,-1893.08720372,0.00027397,2]
[320311197,1711283447664,-1893.08720372,0.00027397,2]
[320311199,1711283447673,-1893.08720372,0.00027397,2]
[320311201,1711283447683,-1893.08720372,0.00027397,2]
[320311203,1711283447692,-1893.08720372,0.00027397,2]
[320311204,1711283447701,-1893.08720372,0.00027397,2]
[320311207,1711283447711,-1893.08720372,0.00027397,2]
[320311208,1711283447720,-1893.08720372,0.00027397,2]
[320311210,1711283447730,-760.79,0.00027397,2]
[320311212,1711283447739,-152.56599179,0.0002767,2]
[320311214,1711283447748,-760.79,0.00027671,2]
[320311216,1711283447757,-760.79,0.00027945,2]
[320311218,1711283447766,-760.98003209,0.00028219,2]
[320311220,1711283447776,-150.0,0.0002867,2]
[320311222,1711283447785,-150.24060008,0.00029283,2]
[320311224,1711283447794,-152.08054771,0.0002958,2]
[320311226,1711283447803,-648.384411,0.00029722,2]
[320311228,1711283447812,-454.41404875,0.000299,7]
[320311230,1711283447821,-1057.38336936,0.0003,4]
[320311232,1711283447830,-641.88143862,0.0003,4]
[320311234,1711283447838,-227.0,0.0003,2]
[320311236,1711283447847,-500.0,0.00032876,2]
[320311238,1711283447856,-1008.67559596,0.00032876,4]
[320311239,1711283447865,-227.0,0.00033,2]
[320311241,1711283447875,-206.875072,0.00033496,2]
[320311244,1711283447885,-167.069711,0.00033496,2]
[320311245,1711283447894,-864.79659048,0.00034,4]
[320311247,1711283447903,-152.08054771,0.00034112,7]
[320311249,1711283447913,-152.08054773,0.00034245,7]
[320311251,1711283447922,-402.464081,0.00034329,2]
[320311253,1711283447931,-2000.0,0.00034564,2]
[320311255,1711283447940,-1260.69199348,0.00034728,12]
[320311257,1711283447949,-227.0,0.000349,2]
[320311259,1711283447958,-1969.7108823,0.000349,2]
[320311261,1711283447967,-593.25325532,0.00035,2]
[320311263,1711283447975,-1907.48980195,0.00035,2]
[320311266,1711283447992,-20417.51019805,0.00035,2]
[320311268,1711283448001,-3746.34816652,0.00035,2]
[320311270,1711283448010,-2041.18146024,0.00035,2]
[320311694,1711283455767,7482.43790868,0.00019,2]
[320311695,1711283458064,155.46277925,0.00019,2]
[320311696,1711283459659,1042.96963488,0.00019,2]
[320311697,1711283512721,155.22936528,0.00019,2]
[320311698,1711283527193,4047.29388808,0.00019,2]
[320311699,1711283528491,156.74183684,0.00019,2]
[320311712,1711284378335,410.15935498,0.000189,2]
[320311713,1711284454125,-154.93802479,0.00019674,2]
[320311714,1711284454146,-305.02961675,0.00019674,2]
[320311715,1711284454168,-2604.83304898,0.00019679,2]
[320311716,1711284454190,-1146.78245548,0.00019693,2]
[320311717,1711284454211,-300.0,0.00019797,2]
[320311718,1711284454232,-7417.01295933,0.00019798,2]
[320311719,1711284454252,-3121.12747682,0.00019899,2]
[320311720,1711284454272,-155.76603985,0.0002,2]
[320311721,1711284454292,-683.82278361,0.0002,2]
[320311722,1711284454317,-250.0,0.00020233,2]
[320311723,1711284454342,-652.55677158,0.00021746,2]
[320311724,1711284454362,-374.01531259,0.00021917,2]
[320311725,1711284454382,-310.82864751,0.00021917,2]
[320311726,1711284454403,-166.666666,0.00021918,2]
[320311727,1711284454423,-154.93802479,0.00022,2]
[320311728,1711284454444,-166.537002,0.00022058,2]
[320311729,1711284454464,-466.6204667,0.00022103,2]
[320311730,1711284454484,-166.666666,0.00022478,2]
[320311731,1711284454505,-24900.0,0.00022623,2]
[320311732,1711284454528,-187.78770909,0.00022665,2]
[320311733,1711284454548,-324.192206,0.00022765,2]
[320311734,1711284454569,-621.62783858,0.00022834,2]
[320311735,1711284454589,-404.61512768,0.00023027,2]
[320311736,1711284454610,-323.19855223,0.00023027,2]
[320311737,1711284454631,-166.666666,0.00023038,2]
[320311738,1711284454651,-5745.0943654,0.00023121,2]
[320311739,1711284454671,-791.2412369,0.00023312,2]
[320311740,1711284454692,-582.363,0.00023315,2]
[320311741,1711284454717,-166.666666,0.00023597,2]
[320311742,1711284454737,-410.15935498,0.000239,2]
[320311743,1711284454757,-166.666666,0.00024157,2]
[320311744,1711284454778,-2378.53524744,0.00024581,2]
[320311745,1711284454798,-166.666666,0.00024717,2]
[320311746,1711284454817,-445.20357372,0.00025,2]
[320311747,1711284454837,-242.920478,0.00025106,2]
[320311748,1711284454857,-161.424866,0.00025106,2]
[320311749,1711284454877,-161.424866,0.00025734,2]
[320311750,1711284454897,-154.93802479,0.00026,2]
[320311751,1711284454917,-161.424866,0.00026361,2]
[320311752,1711284454936,-3108.30983878,0.00027,2]
[320311753,1711284454957,-323.19855222,0.00027055,2]
[320311754,1711284454976,-750.74283642,0.000274,2]
[320311755,1711284454996,-410.15935498,0.000289,2]
[320311756,1711284455140,-178.570803,0.00029312,2]
[320311757,1711284455161,-236.7497194,0.000299,7]
[320311758,1711284455181,-641.88143862,0.0003,4]
[320311759,1711284455201,-227.0,0.0003,2]
[320311760,1711284455221,-171.81468987,0.00031083,2]
[320311761,1711284455242,-209.75815053,0.00031083,2]
[320311762,1711284455265,-500.0,0.00031083,2]
[320311763,1711284455287,-500.0,0.00031083,2]
[320311764,1711284455310,-500.0,0.00031083,2]
[320311765,1711284455330,-500.0,0.00031083,2]
[320311766,1711284455355,-500.0,0.00031083,2]
[320311767,1711284455377,-500.0,0.00031083,2]
[320311768,1711284455400,-500.0,0.00031083,2]
[320311769,1711284455421,-500.0,0.00031083,2]
[320311770,1711284455443,-500.0,0.00031083,2]
[320311771,1711284455464,-500.0,0.00031083,2]
[320311772,1711284455486,-500.0,0.00031083,2]
[320311773,1711284455506,-500.0,0.00031083,2]
[320311774,1711284455528,-500.0,0.00031083,2]
[320311775,1711284455550,-500.0,0.00031083,2]
[320311776,1711284455570,-500.0,0.00031083,2]
[320311777,1711284455590,-613.65201926,0.00031083,2]
[320311778,1711284455610,-500.0,0.00031083,2]
[320311779,1711284455631,-500.0,0.00031083,2]
[320311780,1711284455652,-500.0,0.00031083,2]
[320311781,1711284455673,-500.0,0.00031083,2]
[320311782,1711284455695,-500.0,0.00031083,2]
[320311783,1711284455716,-500.0,0.00031083,2]
[320311784,1711284455736,-500.0,0.00031083,2]
[320311785,1711284455757,-500.0,0.00031083,2]
[320311786,1711284455782,-500.0,0.00031083,2]
[320311787,1711284455802,-500.0,0.00031083,2]
[320311788,1711284455837,-500.0,0.00031083,2]
[320311789,1711284455860,-500.0,0.00031083,2]
[320311790,1711284455882,-500.0,0.00031083,2]
[320311791,1711284455904,-500.0,0.00031083,2]
[320311792,1711284455926,-500.0,0.00031083,2]
[320311793,1711284455947,-500.0,0.00031083,2]
[320311794,1711284455968,-500.0,0.00031083,2]
[320311795,1711284455990,-500.0,0.00031083,2]
[320311796,1711284456011,-500.0,0.00031083,2]
[320311797,1711284456033,-500.0,0.00031083,2]
[320311798,1711284456053,-300.0,0.00031083,2]
[320311799,1711284456075,-404.61512766,0.00031084,2]
[320311800,1711284456096,-323.19855222,0.00031084,2]
[320311801,1711284456117,-227.0,0.00033,2]
[320311802,1711284456137,-227.0,0.00033534,2]
[320311803,1711284456158,-500.0,0.00033534,2]
[320311804,1711284456179,-961.6726568,0.00034,90]
[320311805,1711284456199,-865.17829228,0.00034,4]
[320311806,1711284456220,-324.192206,0.00034147,2]
[320311807,1711284456240,-1201.76227202,0.000348,2]
[320311808,1711284456261,-3764.26372686,0.000348,30]
[320311809,1711284456281,-291.283474,0.00034996,4]
[320311810,1711284456306,-296.76469055,0.00034997,2]
[320311811,1711284456326,-187.7475863,0.00034997,2]
[320311812,1711284456351,-499.20859725,0.00034997,2]
[320311813,1711284456372,-559.58410516,0.00034998,4]
[320311814,1711284456395,-435.18188624,0.00034998,2]
[320311815,1711284456416,-158.44777875,0.00034998,4]
[320311816,1711284456436,-884.15253254,0.00034998,4]
[320311817,1711284456456,-210.87976388,0.00034998,4]
[320311818,1711284456477,-523.28309686,0.00034998,4]
[320311819,1711284456497,-3161.87287747,0.00034998,4]
[320311820,1711284456521,-179.93362187,0.00034998,4]
[320311821,1711284456545,-919.62711952,0.00034998,4]
[320311822,1711284456566,-289.79114307,0.00034998,4]
[320311823,1711284456588,-314.93472992,0.00034998,4]
[320311824,1711284456611,-316.99666353,0.00034998,4]
[320311825,1711284456633,-322.45069746,0.00034998,4]
[320311826,1711284456655,-154.95050007,0.00034998,4]
[320311827,1711284456677,-405.00494432,0.00034998,4]
[320311828,1711284456698,-155.94470797,0.00034998,4]
[320311829,1711284456719,-309.70578029,0.00034998,4]
[320311830,1711284456741,-2531.4727485,0.00034998,4]
[320311831,1711284456761,-884.55589822,0.00034998,4]
[320311832,1711284456785,-1377.80821392,0.00034998,4]
[320311833,1711284456806,-1067.73401972,0.00034998,4]
[320311834,1711284456827,-166.24095408,0.00034998,4]
[320311835,1711284456848,-270.16270806,0.00034998,4]
[320311836,1711284456868,-886.90320547,0.00034998,4]
[320311837,1711284456889,-156.24249828,0.00034998,4]
[320311838,1711284456910,-466.33078241,0.00034998,4]
[320311839,1711284456933,-381.8787319,0.00034998,4]
[320311840,1711284456954,-779.14717411,0.00034998,4]
[320311841,1711284456976,-189.38278239,0.00034998,4]
[320311842,1711284456997,-178.4570254,0.00034998,4]
[320311843,1711284457017,-3481.86884503,0.00034998,4]
[320311844,1711284457041,-160.75398886,0.00034999,4]
[320311845,1711284457061,-4161.19117123,0.00034999,4]
[320311846,1711284457082,-158.42659111,0.00034999,7]
[320311847,1711284457103,-471.51621086,0.00034999,7]
[320311848,1711284457124,-482.21089349,0.00034999,7]
[320311849,1711284457145,-8158.91356245,0.00035,2]
[320311850,1711284457166,-191.18700302,0.00035,4]
[320311851,1711284457187,-500.0,0.00035,5]
[320311852,1711284457208,-28943.80004516,0.00035,7]
[320311853,1711284457228,-175.12065411,0.00035,30]
[320311854,1711284457247,-718.15607415,0.00035,2]
[320311855,1711284457271,-1293.94539178,0.00035,30]
[320311856,1711284457291,-1525.58766116,0.00035,2]
[320311857,1711284457315,-323.19855222,0.00035112,2]
[320311858,1711284457335,-351.219861,0.00035616,120]
[320311859,1711284457356,-500.0,0.00036,5]
[320311860,1711284457378,-227.0,0.00036,2]
[320311861,1711284457400,-227.0,0.00036,2]
[320311862,1711284457421,-254.61950012,0.0003624,2]
[320311863,1711284457442,-227.0,0.00036534,2]
[320311864,1711284457462,-4000.0,0.000368,48]
[320311865,1711284457484,-150.92453773,0.00036968,2]
[320311866,1711284457505,-500.0,0.00037,5]
[320311867,1711284457526,-301.84907546,0.00037589,4]
[320311868,1711284457547,-500.0,0.00038,5]
[320311869,1711284457569,-582.363,0.00038475,2]
[320311870,1711284457590,-4292.73855532,0.000388,60]
[320311871,1711284457611,-500.0,0.00039,5]
[320311872,1711284457632,-4256.0,0.00039,120]
[320311873,1711284457653,-227.0,0.00039,2]
[320311874,1711284457676,-227.0,0.00039,2]
[320311875,1711284457697,-227.0,0.00039,2]
[320311876,1711284457718,-404.61512766,0.0003914,2]
[320311877,1711284457739,-2000.0,0.0003914,2]
[320311878,1711284457760,-323.19855222,0.0003914,2]
[320311879,1711284457781,-1000.0,0.00039239,6]
[320311880,1711284457803,-31713.68312309,0.0003924,3]
[320311881,1711284457824,-38661.8366933,0.0003924,21]
[320311922,1711284632089,-205.23034575,0.00024079,2]
[320311925,1711284632099,-2000.0,0.0002408,2]
[320311927,1711284632108,-233.83481705,0.00026553,2]
[320311929,1711284632117,-304.4261086,0.00026554,2]
[320311931,1711284632126,-150.51627088,0.00026555,2]
[320311933,1711284632136,-269.82214547,0.00033354,7]
[320311935,1711284632145,-624.95,0.00034997,2]
[320311937,1711284632154,-624.95,0.00035271,2]
[320311939,1711284632163,-624.95,0.00035545,2]
[320311940,1711284632172,-154.93802479,0.00035615,4]
[320311943,1711284632181,-263.414895,0.00035616,120]
[320311945,1711284632190,-624.95,0.00035819,4]
[320311947,1711284632199,-624.95,0.00036093,4]
[320311949,1711284632208,-277.14042,0.00036314,3]
[320311951,1711284632218,-624.95,0.00036367,4]
[320311953,1711284632227,-399.96026465,0.00036641,4]
[320312230,1711284642695,-865.17829228,0.00035818,4]
[320312232,1711284642706,-224.98973535,0.00036641,4]
[320312234,1711284642715,-2175.81688715,0.00036914,2]
[320312236,1711284642725,-624.95,0.00036915,4]
[320312238,1711284642734,-624.95,0.00037189,4]
[320312240,1711284642743,-624.95,0.00037463,4]
[320312242,1711284642752,-383.33659202,0.00037737,4]
[320312302,1711284643310,-241.61340798,0.00037737,4]
[320312305,1711284643320,-624.95,0.00038011,4]
[320312307,1711284643330,-624.95,0.00038285,4]
[320312309,1711284643339,-847.54870064,0.00038446,2]
[320312310,1711284643350,-598.16219117,0.00038447,2]
[320312313,1711284643361,-318.08983413,0.00038448,7]
[320312315,1711284643370,-624.95,0.00038559,4]
[320312317,1711284643379,-624.95,0.00038833,4]
[320312318,1711284643389,-226.46583844,0.00039107,4]
[320312599,1711284647354,-918.76381675,0.00035817,4]
[320312600,1711284647364,-398.48416156,0.00039107,4]
[320312601,1711284647373,-1772.73979407,0.0003914,2]
[320312602,1711284647382,-2000.0,0.0003914,2]
[320312603,1711284647392,-500.0,0.00039237,15]
[320312604,1711284647401,-500.0,0.00039237,15]
[320312605,1711284647410,-500.0,0.00039237,15]
[320312606,1711284647419,-541.36520193,0.00039237,15]
[320312607,1711284647430,-230.0,0.00039238,2]
[320312608,1711284647439,-154.93802479,0.00039238,4]
[320312609,1711284647449,-29680.8444089,0.00039238,30]
[320312675,1711285546179,-205.23034575,0.00020797,2]
[320312676,1711285546200,-1970.12271033,0.00020798,2]
[320312677,1711285546221,-7492.0573456,0.0002101,2]
[320312678,1711285546241,-631.00123632,0.00023771,2]
[320312679,1711285546261,-3439.514376,0.0002408,2]
[320312680,1711285546280,-1498.7192433,0.00024581,2]
[320312681,1711285546299,-293.454931,0.00025106,2]
[320312682,1711285546320,-299.941225,0.00025106,2]
[320312683,1711285546339,-165.722575,0.00025106,2]
[320312684,1711285546360,-166.666666,0.00025438,2]
[320312685,1711285546381,-154.92253873,0.00026,2]
[320312686,1711285546401,-166.666666,0.00026132,2]
[320312687,1711285546420,-804.0,0.000262,2]
[320312688,1711285546439,-166.666666,0.00026826,2]
[320312689,1711285546458,-1619.429426,0.00027,2]
[320312690,1711285546479,-2000.0,0.000272,2]
[320312691,1711285546498,-166.666666,0.00027519,2]
[320312692,1711285546516,-166.666666,0.00028213,2]
[320312693,1711285546535,-166.666666,0.00028906,2]
[320312694,1711285546556,-11656.9606909,0.00029031,2]
[320312695,1711285546577,-500.0,0.00029539,2]
[320312696,1711285546596,-484.396993,0.00029698,2]
[320312697,1711285546618,-153.0,0.0002975,2]
[320312698,1711285546637,-153.0,0.0002975,2]
[320312699,1711285546658,-153.0,0.0002975,2]
[320312700,1711285546676,-153.0,0.0002975,2]
[320312701,1711285546696,-153.0,0.0002975,2]
[320312702,1711285546715,-153.0,0.0002975,2]
[320312703,1711285546737,-153.0,0.0002975,2]
[320312704,1711285546756,-153.0,0.0002975,2]
[320312705,1711285546776,-153.0,0.0002975,2]
[320312706,1711285546795,-153.0,0.0002975,2]
[320312707,1711285546815,-153.0,0.0002975,2]
[320312708,1711285546834,-153.0,0.0002975,2]
[320312709,1711285546853,-153.0,0.0002975,2]
[320312710,1711285546872,-153.0,0.0002975,2]
[320312711,1711285546893,-153.0,0.0002975,2]
[320312712,1711285546913,-156.5547088,0.0002975,2]
[320312713,1711285546934,-153.0,0.0002975,2]
[320312714,1711285546954,-153.0,0.0002975,2]
[320312715,1711285546977,-153.0,0.0002975,2]
[320312716,1711285546996,-153.0,0.0002975,2]
[320312717,1711285547015,-153.0,0.0002975,2]
[320312718,1711285547036,-153.0,0.0002975,2]
[320312719,1711285547056,-153.0,0.0002975,2]
[320312720,1711285547075,-201.9092036,0.0002975,2]
[320312721,1711285547095,-153.0,0.0002975,2]
[320312722,1711285547237,-153.0,0.0002975,2]
[320312723,1711285547258,-153.0,0.0002975,2]
[320312724,1711285547278,-201.9092036,0.0002975,2]
[320312725,1711285547299,-153.0,0.0002975,2]
[320312726,1711285547319,-153.0,0.0002975,2]
[320312727,1711285547338,-153.0,0.0002975,2]
[320312728,1711285547358,-201.9092036,0.0002975,2]
[320312729,1711285547378,-153.0,0.0002975,2]
[320312730,1711285547397,-153.0,0.0002975,2]
[320312731,1711285547416,-153.0,0.0002975,2]
[320312732,1711285547435,-153.0,0.0002975,2]
[320312733,1711285547455,-153.0,0.0002975,2]
[320312734,1711285547476,-201.9092036,0.0002975,2]
[320312735,1711285547495,-153.0,0.0002975,2]
[320312736,1711285547514,-153.0,0.0002975,2]
[320312737,1711285547534,-153.0,0.0002975,2]
[320312738,1711285547554,-201.9092036,0.0002975,2]
[320312739,1711285547573,-153.0,0.0002975,2]
[320312740,1711285547592,-254.3339234,0.0002975,2]
[320312741,1711285547616,-153.0,0.0002975,2]
[320312742,1711285547635,-153.0,0.0002975,2]
[320312743,1711285547655,-201.9092036,0.0002975,2]
[320312744,1711285547674,-153.0,0.0002975,2]
[320312745,1711285547693,-153.0,0.0002975,2]
[320312746,1711285547712,-201.9092036,0.0002975,2]
[320312747,1711285547734,-153.0,0.0002975,2]
[320312748,1711285547754,-201.9092036,0.0002975,2]
[320312749,1711285547773,-153.0,0.0002975,2]
[320312750,1711285547793,-153.0,0.0002975,2]
[320312751,1711285547813,-201.9092036,0.0002975,2]
[320312752,1711285547832,-153.0,0.0002975,2]
[320312753,1711285547851,-201.9092036,0.0002975,2]
[320312754,1711285547871,-201.9092036,0.0002975,2]
[320312755,1711285547891,-201.9092036,0.0002975,2]
[320312756,1711285547911,-306.0,0.0002975,2]
[320312757,1711285547930,-197.5568191,0.0002975,2]
[320312758,1711285547952,-153.0,0.00029792,2]
[320312759,1711285547980,-314.3017605,0.00029792,2]
[320312760,1711285548010,-153.0,0.00029792,2]
[320312761,1711285548032,-153.0,0.00029792,2]
[320312762,1711285548053,-153.0,0.00029792,2]
[320312763,1711285548073,-153.0,0.00029792,2]
[320312765,1711285548093,-153.0,0.00029792,2]
[320312766,1711285548113,-153.0,0.00029792,2]
[320312767,1711285548133,-153.0,0.00029792,2]
[320312768,1711285548152,-153.0,0.00029792,2]
[320312769,1711285548171,-153.0,0.00029792,2]
[320312770,1711285548192,-153.0,0.00029792,2]
[320312771,1711285548212,-153.0,0.00029792,2]
[320312772,1711285548233,-153.0,0.00029792,2]
[320312773,1711285548252,-153.0,0.00029792,2]
[320312774,1711285548271,-153.0,0.00029792,2]
[320312775,1711285548291,-236.7497194,0.000299,7]
[320312776,1711285548311,-154.0,0.0003,2]
[320312777,1711285548332,-465.8904,0.00030768,2]
[320312778,1711285548352,-153.0,0.000314,2]
[320312779,1711285548371,-150.51627088,0.00031898,7]
[320312780,1711285548391,-865.17829228,0.00034,4]
[320312781,1711285548410,-161.301296,0.0003403,2]
[320312782,1711285548429,-208.654261,0.000341,2]
[320312783,1711285548448,-457.08769929,0.00034895,2]
[320312784,1711285548470,-457.08769927,0.00034964,2]
[320312785,1711285548491,-445.28611643,0.00034992,7]
[320312786,1711285548511,-500.0,0.00034992,7]
[320312787,1711285548531,-500.0,0.00034992,7]
[320312788,1711285548551,-500.0,0.00034992,7]
[320312789,1711285548571,-533.39032397,0.00034992,7]
[320312790,1711285548589,-166.84913787,0.00034992,7]
[320312791,1711285548611,-785.75693422,0.00034992,7]
[320312792,1711285548632,-785.75693422,0.00034992,7]
[320312793,1711285548652,-785.75693422,0.00034992,7]
[320312794,1711285548673,-785.75693422,0.00034992,7]
[320312795,1711285548694,-785.75693422,0.00034992,7]
[320312796,1711285548714,-785.75693422,0.00034992,7]
[320312797,1711285548733,-785.75693422,0.00034992,7]
[320312798,1711285548752,-785.75693422,0.00034992,7]
[320312799,1711285548772,-785.75693422,0.00034992,7]
[320312800,1711285548793,-785.75693422,0.00034992,7]
[320312801,1711285548814,-785.75693422,0.00034992,7]
[320312802,1711285548834,-785.75693422,0.00034992,7]
[320312803,1711285548854,-785.75693422,0.00034992,7]
[320312804,1711285548874,-785.75693422,0.00034992,7]
[320312805,1711285548894,-785.75693422,0.00034992,7]
[320312806,1711285548916,-785.75693422,0.00034992,7]
[320312807,1711285548936,-785.75693422,0.00034992,7]
[320312808,1711285548956,-785.75693422,0.00034992,7]
[320312809,1711285548977,-785.75693422,0.00034992,7]
[320312810,1711285548998,-785.75693422,0.00034992,7]
[320312811,1711285549018,-785.75693422,0.00034992,7]
[320312812,1711285549039,-785.75693422,0.00034992,7]
[320312813,1711285549059,-785.75693422,0.00034992,7]
[320312814,1711285549079,-785.75693422,0.00034992,7]
[320312815,1711285549099,-785.75693422,0.00034992,7]
[320312816,1711285549119,-785.75693422,0.00034992,7]
[320312817,1711285549140,-785.75693422,0.00034992,7]
[320312818,1711285549160,-785.75693422,0.00034992,7]
[320312819,1711285549181,-785.75693422,0.00034992,7]
[320312820,1711285549201,-785.75693422,0.00034992,7]
[320312821,1711285549221,-785.75693422,0.00034992,7]
[320312822,1711285549242,-785.75693422,0.00034992,7]
[320312823,1711285549261,-785.75693422,0.00034992,7]
[320312824,1711285549282,-785.75693422,0.00034992,7]
[320312825,1711285549301,-785.75693422,0.00034992,7]
[320312826,1711285549321,-785.75693422,0.00034992,7]
[320312827,1711285549341,-785.75693422,0.00034992,7]
[320312828,1711285549360,-785.75693422,0.00034992,7]
[320312829,1711285549380,-785.75693422,0.00034992,7]
[320312830,1711285549399,-785.75693422,0.00034992,7]
[320312831,1711285549419,-785.75693422,0.00034992,7]
[320312832,1711285549439,-785.75693422,0.00034992,7]
[320312833,1711285549459,-785.75693422,0.00034992,7]
[320312834,1711285549479,-785.75693422,0.00034992,7]
[320312835,1711285549499,-785.75693422,0.00034992,7]
[320312836,1711285549519,-785.75693422,0.00034992,7]
[320312837,1711285549540,-785.75693422,0.00034992,7]
[320312838,1711285549661,-785.75693422,0.00034992,7]
[320312839,1711285549681,-785.75693422,0.00034992,7]
[320312840,1711285549703,-785.75693422,0.00034992,7]
[320312841,1711285549723,-785.75693422,0.00034992,7]
[320312842,1711285549742,-785.75693422,0.00034992,7]
[320312843,1711285549764,-785.75693422,0.00034992,7]
[320312844,1711285549788,-785.75693422,0.00034992,7]
[320312845,1711285549809,-785.75693422,0.00034992,7]
[320312846,1711285549832,-785.75693422,0.00034992,7]
[320312847,1711285549852,-1306.73868269,0.00034992,7]
[320312848,1711285549873,-1306.73868269,0.00034992,7]
[320312849,1711285549893,-1306.73868269,0.00034992,7]
[320312850,1711285549915,-1306.73868269,0.00034992,7]